[Event "FIDE World Cadets GU12 2022"]
[Site "Batumi"]
[Date "2022.09.16"]
[Round "1"]
[White "Zarkua, Anastasia"]
[Black "Merkulova, Victoria"]
[Result "0-1"]
[ECO "E61"]
[WhiteElo "1294"]
[BlackElo "1715"]
[Annotator "NA COMBH"]
[PlyCount "102"]
[EventDate "2022.09.16"]
[EventType "swiss"]
[EventCountry "GEO"]
[SourceTitle "playchess.com"]
[Source "ChessBase"]
[SourceQuality "1"]
[TimeControl "5400+30"]

1. d4 {[%emt 0:01:00]} Nf6 {[%emt 0:01:00]} 2. c4 {[%emt 0:00:30]} c5 {[%emt 0:00:30]} 3. e3 {[%emt 0:00:00]} cxd4 {[%emt 0:00:00]} 4. exd4 {[%emt 0:01:00]} d5 {[%emt 0:00:00]} 5. b3 {[%emt 0:04:30]} g6 {[%emt 0:02:30]} 6. Nf3 {[%emt 0:00:30]} Bg7 {[%emt 0:00:30]} 7. Be2 {[%emt 0:02:30]} O-O {[%emt 0:01:30]} 8. Nc3 {[%emt 0:01:30]} Nc6 {[%emt 0:02:30]} 9. Be3 {[%emt 0:07:30]} Bf5 {[%emt 0:09:30]} 10. h3 {[%emt 0:07:30]} dxc4 {[%emt 0:15:30]} 11. bxc4 {[%emt 0:02:30]} Ne4 {[%emt 0:03:30]} 12. Rc1 {[%emt 0:14:30]} Qa5 {[%emt 0:06:30]} 13. Bd2 {[%emt 0:05:30]} Nxd2 {[%emt 0:01:30]} 14. Qxd2 {[%emt 0:01:30]} e5 {[%emt 0:04:30]} 15. dxe5 {[%emt 0:10:30]} Rad8 {[%emt 0:02:30]} 16. Nd5 {[%emt 0:06:30]} Qxd2+ {[%emt 0:04:30]} 17. Nxd2 {[%emt 0:00:30]} Bxe5 {[%emt 0:01:30]} 18. O-O {[%emt 0:03:30]} Rfe8 {[%emt 0:02:30]} 19. Nb3 {[%emt 0:07:30]} Bb2 {[%emt 0:06:30]} 20. Rce1 {[%emt 0:01:30]} Be4 {[%emt 0:01:30]} 21. Ne3 {[%emt 0:03:17]} Nb4 {[%emt 0:06:30]} 22. Nc5 {[%emt 0:03:50]} f5 {[%emt 0:12:40]} 23. Nxe4 {[%emt 0:01:17]} fxe4 {[%emt 0:00:25]} 24. Nd5 {[%emt 0:03:11]} Nxa2 {[%emt 0:03:28]} 25. Rb1 {[%emt 0:00:41]} Be5 {[%emt 0:01:19]} 26. Rxb7 {[%emt 0:01:12]} a5 {[%emt 0:00:42]} 27. Bd1 {[%emt 0:04:09]} Rb8 {[%emt 0:02:10]} 28. Ne7+ {[%emt 0:01:40]} Kf7 {[%emt 0:02:11]} 29. Rxb8 {[%emt 0:00:42]} Bxb8 {[%emt 0:00:21]} 30. Nc6 {[%emt 0:00:08]} Bc7 {[%emt 0:01:26]} 31. Bb3 {[%emt 0:01:26]} Nc3 {[%emt 0:00:36]} 32. Ra1 {[%emt 0:01:05]} a4 {[%emt 0:00:21]} 33. Bc2 {[%emt 0:00:47]} Bd6 {[%emt 0:00:37]} 34. Na7 {[%emt 0:02:10]} e3 {[%emt 0:04:34]} 35. fxe3 {[%emt 0:01:13]} Bc5 {[%emt 0:00:31]} 36. Nb5 {[%emt 0:00:14]} Rxe3 {[%emt 0:00:37]} 37. Kh2 {[%emt 0:00:50]} a3 {[%emt 0:01:15]} 38. Nxa3 {[%emt 0:00:36]} Bd6+ {[%emt 0:00:34]} 39. Kh1 {[%emt 0:00:15]} Ne2 {[%emt 0:00:20]} 40. Nb5 {[%emt 0:00:59]} Ng3+ {[%emt 0:00:30]} 41. Kg1 {[%emt 0:00:00]} Bc5 {[%emt 0:00:29]} 42. Kh2 {[%emt 0:00:00]} h5 {[%emt 0:00:41]} 43. Rd1 {[%emt 0:01:03]} h4 {[%emt 0:00:10]} 44. Nd4 {[%emt 0:00:00]} Rc3 {[%emt 0:00:36]} 45. Ba4 {[%emt 0:00:38]} Kf6 {[%emt 0:00:23]} 46. Nf3 {[%emt 0:01:05]} Rxc4 {[%emt 0:00:27]} 47. Bb3 {[%emt 0:00:20]} Rc3 {[%emt 0:00:24]} 48. Ba4 {[%emt 0:00:22]} g5 {[%emt 0:00:38]} 49. Bb5 {[%emt 0:00:33]} Rc2 {[%emt 0:01:13]} 50. Bd3 {[%emt 0:00:25]} Rf2 {[%emt 0:00:17]} 51. Bc4 {[%emt 0:00:55]} Nf5 {[%emt 0:00:11]} 0-1

[Event "FIDE World Cadets GU12 2022"]
[Site "Batumi"]
[Date "2022.09.16"]
[Round "1"]
[White "Zhumagali, Raian"]
[Black "Haasova, Timea"]
[Result "1-0"]
[ECO "B45"]
[WhiteElo "1278"]
[BlackElo "1707"]
[Annotator "NA COMBH"]
[PlyCount "127"]
[EventDate "2022.09.16"]
[EventType "swiss"]
[EventCountry "GEO"]
[SourceTitle "playchess.com"]
[Source "ChessBase"]
[SourceQuality "1"]
[TimeControl "5400+30"]

1. e4 {[%emt 0:01:00]} c5 {[%emt 0:01:00]} 2. Nf3 {[%emt 0:00:30]} e6 {[%emt 0:00:30]} 3. d4 {[%emt 0:00:30]} cxd4 {[%emt 0:00:30]} 4. Nxd4 {[%emt 0:00:00]} Nf6 {[%emt 0:00:00]} 5. Nc3 {[%emt 0:00:00]} Nc6 {[%emt 0:00:00]} 6. Be3 {[%emt 0:09:30]} Bb4 {[%emt 0:04:30]} 7. Bd3 {[%emt 0:05:30]} Qa5 {[%emt 0:14:30]} 8. Nde2 {[%emt 0:18:30]} d5 {[%emt 0:10:30]} 9. exd5 {[%emt 0:07:30]} Nxd5 {[%emt 0:04:30]} 10. Bd2 {[%emt 0:00:00]} Nxc3 {[%emt 0:16:30]} 11. Bxc3 {[%emt 0:03:00]} Bxc3+ {[%emt 0:01:30]} 12. Nxc3 {[%emt 0:00:30]} O-O {[%emt 0:03:30]} 13. O-O {[%emt 0:01:30]} Rd8 {[%emt 0:05:30]} 14. Qe2 {[%emt 0:14:30]} g6 {[%emt 0:09:30]} 15. a3 {[%emt 0:04:30]} Bd7 {[%emt 0:07:32]} 16. b4 {[%emt 0:01:30]} Qg5 {[%emt 0:01:29]} 17. Ne4 {[%emt 0:00:30]} Qe7 {[%emt 0:01:16]} 18. c3 {[%emt 0:02:30]} Ne5 {[%emt 0:03:11]} 19. Bc2 {[%emt 0:00:30]} Bc6 {[%emt 0:01:10]} 20. Nc5 {[%emt 0:07:30]} Nd7 {[%emt 0:02:18]} 21. Nxd7 {[%emt 0:01:31]} Qxd7 {[%emt 0:01:15]} 22. Rfd1 {[%emt 0:00:53]} Qc7 {[%emt 0:01:14]} 23. c4 {[%emt 0:00:34]} a6 {[%emt 0:01:08]} 24. Bb3 {[%emt 0:02:32]} b6 {[%emt 0:02:39]} 25. Rac1 {[%emt 0:02:26]} Bb7 {[%emt 0:00:44]} 26. f3 {[%emt 0:07:14]} Rac8 {[%emt 0:01:45]} 27. Rxd8+ {[%emt 0:01:36]} Rxd8 {[%emt 0:00:47]} 28. Rd1 {[%emt 0:00:07]} Rd6 {[%emt 0:00:49]} 29. Rd2 {[%emt 0:03:13]} Qd7 {[%emt 0:00:50]} 30. Rd1 {[%emt 0:00:06]} Rd4 {[%emt 0:00:50]} 31. h3 {[%emt 0:03:20]} Kf8 {[%emt 0:01:19]} 32. Kh2 {[%emt 0:01:22]} Qd6+ {[%emt 0:01:22]} 33. Kh1 {[%emt 0:00:27]} Qf4 {[%emt 0:01:10]} 34. c5 {[%emt 0:01:55]} bxc5 {[%emt 0:01:04]} 35. bxc5 {[%emt 0:00:03]} Qf6 {[%emt 0:00:36]} 36. Qc2 {[%emt 0:00:55]} Bc6 {[%emt 0:00:13]} 37. Rxd4 {[%emt 0:00:36]} Qxd4 {[%emt 0:00:06]} 38. Qc1 {[%emt 0:00:16]} Ke7 {[%emt 0:01:07]} 39. Kh2 {[%emt 0:00:46]} Qe5+ {[%emt 0:00:18]} 40. Kh1 {[%emt 0:00:30]} Qe2 {[%emt 0:00:26]} 41. Bc4 {[%emt 0:00:13]} Qf2 {[%emt 0:00:56]} 42. Bxa6 {[%emt 0:00:12]} Bxf3 {[%emt 0:00:45]} 43. Bf1 {[%emt 0:01:25]} Bc6 {[%emt 0:00:23]} 44. Qg5+ {[%emt 0:00:27]} f6 {[%emt 0:00:30]} 45. Qc1 {[%emt 0:00:30]} Qg3 {[%emt 0:00:00]} 46. Qh6 {[%emt 0:00:00]} Be8 {[%emt 0:00:50]} 47. Qc1 {[%emt 0:00:43]} Qc7 {[%emt 0:00:36]} 48. Qc4 {[%emt 0:00:48]} Bc6 {[%emt 0:00:24]} 49. Qh4 {[%emt 0:00:00]} h5 {[%emt 0:00:30]} 50. Qd4 {[%emt 0:00:10]} Qg3 {[%emt 0:00:30]} 51. Kg1 {[%emt 0:00:20]} Qc7 {[%emt 0:00:29]} 52. a4 {[%emt 0:00:12]} Qb8 {[%emt 0:00:27]} 53. Qd3 {[%emt 0:01:43]} Be8 {[%emt 0:00:43]} 54. a5 {[%emt 0:00:04]} Qc7 {[%emt 0:00:32]} 55. Qc3 {[%emt 0:00:36]} Bc6 {[%emt 0:00:30]} 56. a6 {[%emt 0:00:00]} Kf7 {[%emt 0:00:26]} 57. Be2 {[%emt 0:00:40]} Qb8 {[%emt 0:00:42]} 58. Qa5 {[%emt 0:00:59]} Qa8 {[%emt 0:00:40]} 59. Qc7+ {[%emt 0:00:13]} Kg8 {[%emt 0:00:36]} 60. a7 {[%emt 0:00:30]} Bxg2 {[%emt 0:00:00]} 61. Qb8+ {[%emt 0:00:23]} Kg7 {[%emt 0:00:25]} 62. Qxa8 {[%emt 0:00:30]} Bxa8 {[%emt 0:00:30]} 63. Kf2 {[%emt 0:00:30]} Kf7 {[%emt 0:00:30]} 64. Bf3 {[%emt 0:00:00]} 1-0

[Event "FIDE World Cadets GU12 2022"]
[Site "Batumi"]
[Date "2022.09.16"]
[Round "1"]
[White "Belaya, Liliya"]
[Black "Beber, Anja"]
[Result "1-0"]
[ECO "C47"]
[WhiteElo "1266"]
[BlackElo "1674"]
[Annotator "NA COMBH"]
[PlyCount "51"]
[EventDate "2022.09.16"]
[EventType "swiss"]
[EventCountry "GEO"]
[SourceTitle "playchess.com"]
[Source "ChessBase"]
[SourceQuality "1"]
[TimeControl "5400+30"]

1. e4 {[%emt 0:01:00]} e5 {[%emt 0:01:00]} 2. Nf3 {[%emt 0:00:30]} Nc6 {[%emt 0:00:30]} 3. Nc3 {[%emt 0:00:00]} Nf6 {[%emt 0:00:30]} 4. d4 {[%emt 0:00:00]} exd4 {[%emt 0:01:30]} 5. Nxd4 {[%emt 0:00:00]} Bb4 {[%emt 0:00:30]} 6. Nxc6 {[%emt 0:00:00]} bxc6 {[%emt 0:00:00]} 7. Bd3 {[%emt 0:00:00]} O-O {[%emt 0:00:00]} 8. O-O {[%emt 0:00:00]} d5 {[%emt 0:00:30]} 9. exd5 {[%emt 0:00:30]} cxd5 {[%emt 0:00:30]} 10. Bg5 {[%emt 0:00:00]} c6 {[%emt 0:00:30]} 11. Qf3 {[%emt 0:00:00]} Be7 {[%emt 0:00:30]} 12. h3 {[%emt 0:00:00]} Re8 {[%emt 0:01:30]} 13. Rae1 {[%emt 0:00:00]} Rb8 {[%emt 0:02:30]} 14. Ne2 {[%emt 0:02:30]} Rxb2 {[%emt 0:03:30]} 15. Nd4 {[%emt 0:00:30]} Bd7 {[%emt 0:01:30]} 16. Nf5 {[%emt 0:01:30]} Bxf5 {[%emt 0:03:30]} 17. Qxf5 {[%emt 0:00:00]} Ne4 {[%emt 0:03:30]} 18. Bxe4 {[%emt 0:01:00]} dxe4 {[%emt 0:00:30]} 19. Qxe4 {[%emt 0:00:30]} f6 {[%emt 0:01:30]} 20. Bc1 {[%emt 0:04:30]} Rb8 {[%emt 0:05:30]} 21. Qxc6 {[%emt 0:00:30]} Rc8 {[%emt 0:00:30]} 22. Qe6+ {[%emt 0:01:30]} Kh8 {[%emt 0:01:30]} 23. Rd1 {[%emt 0:01:30]} Qa5 {[%emt 0:02:30]} 24. Rfe1 {[%emt 0:01:30]} Qa4 {[%emt 0:01:30]} 25. Rd7 {[%emt 0:00:30]} Qb4 {[%emt 0:01:30]} 26. Rxe7 {[%emt 0:01:30]} 1-0

[Event "FIDE World Cadets GU12 2022"]
[Site "Batumi"]
[Date "2022.09.16"]
[Round "1"]
[White "Valiyeva, Asnad"]
[Black "Kozusnikova, Daniela"]
[Result "1/2-1/2"]
[ECO "A48"]
[WhiteElo "1265"]
[BlackElo "1597"]
[Annotator "NA COMBH"]
[PlyCount "87"]
[EventDate "2022.09.16"]
[EventType "swiss"]
[EventCountry "GEO"]
[SourceTitle "playchess.com"]
[Source "ChessBase"]
[SourceQuality "1"]
[TimeControl "5400+30"]

1. d4 {[%emt 0:01:00]} Nf6 {[%emt 0:01:00]} 2. Bf4 {[%emt 0:00:30]} g6 {[%emt 0:00:30]} 3. e3 {[%emt 0:00:30]} Bg7 {[%emt 0:00:30]} 4. Nf3 {[%emt 0:00:00]} O-O {[%emt 0:00:00]} 5. Be2 {[%emt 0:00:00]} d6 {[%emt 0:00:00]} 6. Nbd2 {[%emt 0:00:30]} Nc6 {[%emt 0:00:00]} 7. O-O {[%emt 0:00:30]} Nd7 {[%emt 0:00:00]} 8. Bg5 {[%emt 0:03:30]} f6 {[%emt 0:00:30]} 9. Bh4 {[%emt 0:00:00]} e5 {[%emt 0:04:30]} 10. c3 {[%emt 0:01:00]} b6 {[%emt 0:01:30]} 11. h3 {[%emt 0:10:30]} Ne7 {[%emt 0:09:30]} 12. Qb3+ {[%emt 0:05:30]} Kh8 {[%emt 0:02:30]} 13. Rad1 {[%emt 0:13:30]} Bb7 {[%emt 0:06:30]} 14. dxe5 {[%emt 0:01:30]} dxe5 {[%emt 0:04:30]} 15. Qa3 {[%emt 0:04:30]} Nf5 {[%emt 0:14:30]} 16. Bd3 {[%emt 0:15:30]} Nxh4 {[%emt 0:04:30]} 17. Nxh4 {[%emt 0:00:30]} f5 {[%emt 0:03:30]} 18. g3 {[%emt 0:01:30]} Nc5 {[%emt 0:05:30]} 19. Bc4 {[%emt 0:02:30]} Qf6 {[%emt 0:04:30]} 20. Nb3 {[%emt 0:08:30]} Nxb3 {[%emt 0:04:30]} 21. Qxb3 {[%emt 0:01:30]} Rad8 {[%emt 0:03:30]} 22. Rxd8 {[%emt 0:03:30]} Rxd8 {[%emt 0:03:30]} 23. Rd1 {[%emt 0:00:00]} f4 {[%emt 0:08:48]} 24. Rxd8+ {[%emt 0:07:10]} Qxd8 {[%emt 0:00:30]} 25. Qc2 {[%emt 0:00:00]} Qd7 {[%emt 0:02:57]} 26. Qd3 {[%emt 0:02:48]} Qe7 {[%emt 0:03:34]} 27. Qxg6 {[%emt 0:02:55]} fxg3 {[%emt 0:05:43]} 28. Qxg3 {[%emt 0:03:25]} Qd8 {[%emt 0:01:46]} 29. Nf5 {[%emt 0:03:04]} Bf6 {[%emt 0:01:46]} 30. Nh6 {[%emt 0:00:08]} Qd1+ {[%emt 0:00:41]} 31. Bf1 {[%emt 0:00:04]} Bd5 {[%emt 0:01:27]} 32. Qg4 {[%emt 0:00:47]} Qxg4+ {[%emt 0:00:52]} 33. Nxg4 {[%emt 0:00:30]} Bg7 {[%emt 0:00:30]} 34. c4 {[%emt 0:00:00]} Be4 {[%emt 0:00:12]} 35. b4 {[%emt 0:02:48]} Kg8 {[%emt 0:01:34]} 36. Bg2 {[%emt 0:00:26]} Bd3 {[%emt 0:00:35]} 37. Bd5+ {[%emt 0:00:35]} Kf8 {[%emt 0:00:30]} 38. e4 {[%emt 0:00:10]} Ke7 {[%emt 0:00:01]} 39. Ne3 {[%emt 0:01:18]} Kd7 {[%emt 0:00:31]} 40. f3 {[%emt 0:00:04]} Bf8 {[%emt 0:00:40]} 41. a3 {[%emt 0:00:37]} Bh6 {[%emt 0:00:31]} 42. Kf2 {[%emt 0:00:08]} Bf4 {[%emt 0:00:14]} 43. a4 {[%emt 0:01:10]} Ke7 {[%emt 0:00:50]} 44. Ke1 {[%emt 0:02:31]} 1/2-1/2

[Event "FIDE World Cadets GU12 2022"]
[Site "Batumi"]
[Date "2022.09.16"]
[Round "1"]
[White "Barazovsky, Tamar"]
[Black "Li, Anna Sofie"]
[Result "0-1"]
[ECO "C47"]
[WhiteElo "1250"]
[BlackElo "1590"]
[Annotator "NA COMBH"]
[PlyCount "64"]
[EventDate "2022.09.16"]
[EventType "swiss"]
[EventCountry "GEO"]
[SourceTitle "playchess.com"]
[Source "ChessBase"]
[SourceQuality "1"]
[TimeControl "5400+30"]

1. e4 {[%emt 0:01:00]} e5 {[%emt 0:01:00]} 2. Nf3 {[%emt 0:00:30]} Nc6 {[%emt 0:00:30]} 3. Nc3 {[%emt 0:00:00]} Nf6 {[%emt 0:00:00]} 4. d4 {[%emt 0:00:00]} exd4 {[%emt 0:00:00]} 5. Nxd4 {[%emt 0:00:00]} Bb4 {[%emt 0:00:30]} 6. Nxc6 {[%emt 0:00:00]} bxc6 {[%emt 0:00:30]} 7. Bd3 {[%emt 0:00:30]} d5 {[%emt 0:00:30]} 8. exd5 {[%emt 0:00:00]} cxd5 {[%emt 0:01:30]} 9. O-O {[%emt 0:01:00]} O-O {[%emt 0:00:30]} 10. Ne2 {[%emt 0:00:00]} c5 {[%emt 0:01:30]} 11. c3 {[%emt 0:00:00]} Ba5 {[%emt 0:00:30]} 12. Bg5 {[%emt 0:01:30]} Bb7 {[%emt 0:01:30]} 13. Ng3 {[%emt 0:01:30]} h6 {[%emt 0:02:30]} 14. Bxf6 {[%emt 0:00:30]} Qxf6 {[%emt 0:00:30]} 15. Qg4 {[%emt 0:00:30]} Bc8 {[%emt 0:05:30]} 16. Qh5 {[%emt 0:02:30]} Be6 {[%emt 0:02:30]} 17. f4 {[%emt 0:00:30]} Bb6 {[%emt 0:03:30]} 18. Kh1 {[%emt 0:00:30]} Bc7 {[%emt 0:03:30]} 19. f5 {[%emt 0:01:30]} Bd7 {[%emt 0:07:30]} 20. Qf3 {[%emt 0:01:30]} Bc6 {[%emt 0:01:30]} 21. Nh5 {[%emt 0:00:30]} Qd6 {[%emt 0:02:30]} 22. Qh3 {[%emt 0:01:30]} Bd7 {[%emt 0:04:30]} 23. Qh4 {[%emt 0:01:30]} Bd8 {[%emt 0:04:30]} 24. f6 {[%emt 0:00:30]} g5 {[%emt 0:01:30]} 25. Qf2 {[%emt 0:01:30]} Bc7 {[%emt 0:03:30]} 26. g3 {[%emt 0:01:30]} c4 {[%emt 0:03:30]} 27. Bc2 {[%emt 0:00:30]} Bc6 {[%emt 0:04:30]} 28. Qf5 {[%emt 0:01:30]} d4+ {[%emt 0:00:30]} 29. Be4 {[%emt 0:00:30]} Bxe4+ {[%emt 0:00:30]} 30. Qxe4 {[%emt 0:00:30]} Rae8 {[%emt 0:00:30]} 31. Qxd4 {[%emt 0:01:30]} Qc6+ {[%emt 0:00:30]} 32. Kg1 {[%emt 0:01:30]} Bb6 {[%emt 0:00:30]} 0-1